[Event "98th Caplin Hastings Masters 2024-25"]
[Site "Hastings"]
[Date "2024.12.28"]
[Round "1.49"]
[White "Chapman, Luke"]
[Black "Bilandzic, Ante"]
[Result "1-0"]
[ECO "B12"]
[WhiteElo "1706"]
[BlackElo "1912"]
[Annotator "NA RC"]
[PlyCount "85"]
[EventDate "2024.12.23"]
[EventType "swiss"]
[EventCountry "ENG"]
[SourceTitle "playchess.com"]
[Source "ChessBase"]
[SourceQuality "1"]
[TimeControl "5400+30"]

1. e4 {[%emt 0:00:02]} c6 {[%emt 0:00:11]} 2. d4 {[%emt 0:00:07]} d5 {[%emt 0:00:04]} 3. f3 {[%emt 0:00:04]} e6 {[%emt 0:00:28]} 4. Nc3 {[%emt 0:00:07]} Bb4 {[%emt 0:00:18]} 5. a3 {[%emt 0:00:22]} Bxc3+ {[%emt 0:00:19]} 6. bxc3 {[%emt 0:00:02]} c5 {[%emt 0:00:13]} 7. Be3 {[%emt 0:05:57]} dxe4 {[%emt 0:06:53]} 8. Nh3 {[%emt 0:01:45]} exf3 {[%emt 0:07:19]} 9. Qxf3 {[%emt 0:01:04]} Nf6 {[%emt 0:03:58]} 10. Bd3 {[%emt 0:10:08]} Nc6 {[%emt 0:04:40]} 11. Rd1 {[%emt 0:04:39]} Bd7 {[%emt 0:17:31]} 12. O-O {[%emt 0:02:46]} Qe7 {[%emt 0:04:10]} 13. Rb1 {[%emt 0:15:51]} cxd4 {[%emt 0:10:48]} 14. Bg5 {[%emt 0:06:51]} Rb8 {[%emt 0:19:08]} 15. Qg3 {[%emt 0:03:02]} e5 {[%emt 0:00:42]} 16. Bxf6 {[%emt 0:04:10]} gxf6 {[%emt 0:00:09]} 17. Qg7 {[%emt 0:00:19]} Rf8 {[%emt 0:04:28]} 18. Rxf6 {[%emt 0:00:29]} Bxh3 {[%emt 0:02:45]} 19. Rxc6 {[%emt 0:01:37]} Kd7 {[%emt 0:00:58]} 20. Rf6 {[%emt 0:03:43]} Bxg2 {[%emt 0:02:11]} 21. Bf5+ {[%emt 0:04:45]} Kc7 {[%emt 0:00:09]} 22. Bxh7 {[%emt 0:00:05]} Be4 {[%emt 0:01:54]} 23. Rbf1 {[%emt 0:01:09]} Bd5 {[%emt 0:03:15]} 24. cxd4 {[%emt 0:01:01]} Qxa3 {[%emt 0:01:25]} 25. R6f2 {[%emt 0:03:48]} Rbe8 {[%emt 0:02:02]} 26. c3 {[%emt 0:00:43]} Qd6 {[%emt 0:01:31]} 27. Rf6 {[%emt 0:01:01]} Qe7 {[%emt 0:01:38]} 28. Re1 {[%emt 0:02:20]} e4 {[%emt 0:01:25]} 29. Rf5 {[%emt 0:00:45]} Qd7 {[%emt 0:00:49]} 30. Qg3+ {[%emt 0:00:34]} Kc8 {[%emt 0:00:29]} 31. c4 {[%emt 0:00:28]} Bc6 {[%emt 0:02:15]} 32. d5 {[%emt 0:00:08]} Ba4 {[%emt 0:00:30]} 33. Rf6 {[%emt 0:00:13]} Qc7 {[%emt 0:00:29]} 34. Qxc7+ {[%emt 0:02:57]} Kxc7 {[%emt 0:00:01]} 35. Rxe4 {[%emt 0:00:11]} Rg8+ {[%emt 0:01:53]} 36. Kf2 {[%emt 0:00:32]} Rxe4 {[%emt 0:00:09]} 37. Rxf7+ {[%emt 0:00:39]} Bd7 {[%emt 0:01:17]} 38. Bxe4 {[%emt 0:00:07]} b6 {[%emt 0:00:18]} 39. Bf5 {[%emt 0:00:07]} Rd8 {[%emt 0:01:17]} 40. h4 {[%emt 0:00:26]} Kd6 {[%emt 0:00:00]} 41. Rxd7+ {[%emt 0:01:04]} Rxd7 {[%emt 0:00:00]} 42. Bxd7 {[%emt 0:00:04]} Kxd7 {[%emt 0:00:00]} 43. h5 {[%emt 0:00:03]} 1-0

[Event "98th Caplin Hastings Masters 2024-25"]
[Site "Hastings"]
[Date "2024.12.28"]
[Round "1.50"]
[White "Jukes, Sam"]
[Black "Lee, Jungsoo"]
[Result "1-0"]
[ECO "B03"]
[WhiteElo "1911"]
[BlackElo "1705"]
[Annotator "NA"]
[PlyCount "103"]
[EventDate "2024.12.23"]
[EventType "swiss"]
[EventCountry "ENG"]
[SourceTitle "playchess.com"]
[Source "ChessBase"]
[SourceQuality "1"]
[TimeControl "5400+30"]

1. e4 {[%emt 0:00:03]} Nf6 {[%emt 0:00:11]} 2. e5 {[%emt 0:00:57]} Nd5 {[%emt 0:00:06]} 3. d4 {[%emt 0:00:05]} d6 {[%emt 0:00:04]} 4. c4 {[%emt 0:00:19]} Nb6 {[%emt 0:00:07]} 5. f4 {[%emt 0:00:55]} g6 {[%emt 0:00:34]} 6. Nc3 {[%emt 0:06:04]} Bg7 {[%emt 0:00:25]} 7. Be3 {[%emt 0:02:38]} O-O {[%emt 0:02:50]} 8. Nf3 {[%emt 0:03:00]} dxe5 {[%emt 0:01:06]} 9. fxe5 {[%emt 0:00:16]} c5 {[%emt 0:00:46]} 10. d5 {[%emt 0:04:53]} Bg4 {[%emt 0:00:20]} 11. Bf4 {[%emt 0:09:48]} N8d7 {[%emt 0:00:22]} 12. Qe2 {[%emt 0:03:53]} Qb8 {[%emt 0:00:13]} 13. O-O-O {[%emt 0:06:39]} Bxf3 {[%emt 0:01:31]} 14. Qxf3 {[%emt 0:02:50]} Bxe5 {[%emt 0:01:03]} 15. Bh6 {[%emt 0:01:05]} Bg7 {[%emt 0:02:04]} 16. Bf4 {[%emt 0:06:31]} Qd8 {[%emt 0:03:58]} 17. h4 {[%emt 0:00:59]} Ne5 {[%emt 0:05:26]} 18. Bxe5 {[%emt 0:01:56]} Bxe5 {[%emt 0:00:11]} 19. h5 {[%emt 0:00:47]} Kg7 {[%emt 0:06:19]} 20. Ne4 {[%emt 0:08:43]} Nd7 {[%emt 0:03:44]} 21. Qh3 {[%emt 0:04:43]} Bf4+ {[%emt 0:16:32]} 22. Kb1 {[%emt 0:00:39]} Rh8 {[%emt 0:05:36]} 23. h6+ {[%emt 0:00:38]} Kf8 {[%emt 0:02:05]} 24. Bd3 {[%emt 0:02:13]} Nf6 {[%emt 0:07:34]} 25. Nxc5 {[%emt 0:06:01]} Qb6 {[%emt 0:01:17]} 26. Nd7+ {[%emt 0:06:23]} Nxd7 {[%emt 0:00:11]} 27. Qxd7 {[%emt 0:00:05]} Be5 {[%emt 0:01:35]} 28. Rd2 {[%emt 0:04:57]} Qe3 {[%emt 0:01:18]} 29. Kc2 {[%emt 0:00:15]} Qb6 {[%emt 0:03:46]} 30. Kb1 {[%emt 0:08:45]} Qe3 {[%emt 0:02:18]} 31. Rhd1 {[%emt 0:00:33]} Qxh6 {[%emt 0:00:48]} 32. Re2 {[%emt 0:00:15]} Bf6 {[%emt 0:01:06]} 33. Qxb7 {[%emt 0:02:23]} Kg7 {[%emt 0:02:13]} 34. Rf1 {[%emt 0:01:25]} Qg5 {[%emt 0:02:08]} 35. Qc7 {[%emt 0:00:31]} Rhb8 {[%emt 0:04:23]} 36. Qf4 {[%emt 0:01:28]} Rd8 {[%emt 0:10:27]} 37. Qxg5 {[%emt 0:01:14]} Bxg5 {[%emt 0:00:09]} 38. Kc2 {[%emt 0:00:09]} Rac8 {[%emt 0:01:40]} 39. Kb3 {[%emt 0:01:11]} Bf6 {[%emt 0:01:30]} 40. Rd1 {[%emt 0:00:56]} Rb8+ {[%emt 0:02:26]} 41. Ka3 {[%emt 0:01:00]} Rd6 {[%emt 0:01:26]} 42. b4 {[%emt 0:00:40]} Bc3 {[%emt 0:01:58]} 43. b5 {[%emt 0:00:18]} Bf6 {[%emt 0:04:26]} 44. Kb4 {[%emt 0:00:40]} e6 {[%emt 0:01:36]} 45. Be4 {[%emt 0:00:13]} a6 {[%emt 0:01:42]} 46. a4 {[%emt 0:00:16]} axb5 {[%emt 0:00:23]} 47. axb5 {[%emt 0:00:53]} h5 {[%emt 0:00:58]} 48. c5 {[%emt 0:00:43]} Ra6 {[%emt 0:00:25]} 49. d6 {[%emt 0:00:41]} Bd8 {[%emt 0:00:14]} 50. c6 {[%emt 0:00:49]} Ba5+ {[%emt 0:00:48]} 51. Kc4 {[%emt 0:00:11]} Bb6 {[%emt 0:00:14]} 52. bxa6 {[%emt 0:00:16]} 1-0

[Event "98th Caplin Hastings Masters 2024-25"]
[Site "Hastings"]
[Date "2024.12.28"]
[Round "1.51"]
[White "Kim, Yegeon"]
[Black "Vaidyanathan, Sathya"]
[Result "1-0"]
[ECO "C79"]
[WhiteElo "1697"]
[BlackElo "1908"]
[Annotator "RC"]
[PlyCount "73"]
[EventDate "2024.12.23"]
[EventType "swiss"]
[EventCountry "ENG"]
[SourceTitle "playchess.com"]
[Source "ChessBase"]
[SourceQuality "1"]
[TimeControl "5400+30"]

1. e4 {[%emt 0:00:04]} e5 {[%emt 0:00:04]} 2. Nf3 {[%emt 0:00:04]} Nc6 {[%emt 0:00:03]} 3. Bb5 {[%emt 0:00:04]} a6 {[%emt 0:00:06]} 4. Ba4 {[%emt 0:00:03]} Nf6 {[%emt 0:00:04]} 5. O-O {[%emt 0:00:08]} d6 {[%emt 0:00:02]} 6. c3 {[%emt 0:00:35]} g6 {[%emt 0:00:58]} 7. Re1 {[%emt 0:01:45]} Bg7 {[%emt 0:00:39]} 8. h3 {[%emt 0:02:43]} O-O {[%emt 0:01:35]} 9. d4 {[%emt 0:01:19]} b5 {[%emt 0:00:32]} 10. Bc2 {[%emt 0:09:33]} h6 {[%emt 0:03:00]} 11. Be3 {[%emt 0:13:05]} Bd7 {[%emt 0:05:09]} 12. Nbd2 {[%emt 0:06:12]} Nh7 {[%emt 0:02:45]} 13. Nf1 {[%emt 0:05:04]} f5 {[%emt 0:11:01]} 14. dxe5 {[%emt 0:12:07]} f4 {[%emt 0:11:40]} 15. Bd4 {[%emt 0:02:03]} dxe5 {[%emt 0:03:18]} 16. Bxe5 {[%emt 0:02:23]} Bxe5 {[%emt 0:21:03]} 17. Qd5+ {[%emt 0:01:03]} Kg7 {[%emt 0:01:26]} 18. Nxe5 {[%emt 0:00:15]} Nxe5 {[%emt 0:02:31]} 19. Qxe5+ {[%emt 0:00:13]} Nf6 {[%emt 0:02:12]} 20. Nh2 {[%emt 0:06:02]} Kh7 {[%emt 0:04:07]} 21. Qxf4 {[%emt 0:05:46]} Ng4 {[%emt 0:01:45]} 22. Qg3 {[%emt 0:00:46]} Nxh2 {[%emt 0:07:37]} 23. Kxh2 {[%emt 0:01:21]} Bc6 {[%emt 0:01:38]} 24. Rad1 {[%emt 0:02:54]} Qe7 {[%emt 0:01:29]} 25. e5 {[%emt 0:03:26]} Qe6 {[%emt 0:00:51]} 26. h4 {[%emt 0:05:19]} h5 {[%emt 0:01:28]} 27. f4 {[%emt 0:01:43]} Rad8 {[%emt 0:01:50]} 28. Rxd8 {[%emt 0:09:06]} Rxd8 {[%emt 0:00:48]} 29. Qg5 {[%emt 0:00:16]} Rd2 {[%emt 0:02:13]} 30. f5 {[%emt 0:00:48]} Qd7 {[%emt 0:07:37]} 31. Qxg6+ {[%emt 0:04:06]} Kh8 {[%emt 0:00:02]} 32. Qxh5+ {[%emt 0:00:46]} Kg7 {[%emt 0:03:08]} 33. f6+ {[%emt 0:01:26]} Kf8 {[%emt 0:00:25]} 34. Qh8+ {[%emt 0:01:08]} Kf7 {[%emt 0:00:03]} 35. e6+ {[%emt 0:00:19]} Qxe6 {[%emt 0:00:37]} 36. Qg7+ {[%emt 0:00:09]} Ke8 {[%emt 0:00:34]} 37. Rxe6+ {[%emt 0:00:38]} 1-0

[Event "98th Caplin Hastings Masters 2024-25"]
[Site "Hastings"]
[Date "2024.12.28"]
[Round "1.52"]
[White "Sasikumar, Srivathsan"]
[Black "Choi, Hyunbin"]
[Result "1-0"]
[ECO "C29"]
[WhiteElo "1904"]
[BlackElo "1673"]
[Annotator "NA RC"]
[PlyCount "73"]
[EventDate "2024.12.23"]
[EventType "swiss"]
[EventCountry "ENG"]
[SourceTitle "playchess.com"]
[Source "ChessBase"]
[SourceQuality "1"]
[TimeControl "5400+30"]

1. e4 {[%emt 0:00:12]} e5 {[%emt 0:00:16]} 2. Nc3 {[%emt 0:00:15]} Nf6 {[%emt 0:00:15]} 3. f4 {[%emt 0:00:08]} d5 {[%emt 0:00:15]} 4. fxe5 {[%emt 0:00:14]} Nxe4 {[%emt 0:00:27]} 5. Qf3 {[%emt 0:00:12]} Nxc3 {[%emt 0:00:37]} 6. bxc3 {[%emt 0:00:42]} c5 {[%emt 0:00:16]} 7. Bb5+ {[%emt 0:02:24]} Nc6 {[%emt 0:02:08]} 8. Ne2 {[%emt 0:02:28]} Be7 {[%emt 0:00:20]} 9. O-O {[%emt 0:08:49]} O-O {[%emt 0:00:43]} 10. Bxc6 {[%emt 0:01:48]} bxc6 {[%emt 0:00:43]} 11. d4 {[%emt 0:03:57]} f6 {[%emt 0:02:24]} 12. Qg3 {[%emt 0:01:45]} Kh8 {[%emt 0:05:21]} 13. Bf4 {[%emt 0:11:14]} Ba6 {[%emt 0:03:48]} 14. Rfe1 {[%emt 0:03:49]} fxe5 {[%emt 0:02:36]} 15. Bxe5 {[%emt 0:00:11]} Bf6 {[%emt 0:00:18]} 16. Nf4 {[%emt 0:11:34]} Bxe5 {[%emt 0:02:24]} 17. dxe5 {[%emt 0:00:10]} Qe7 {[%emt 0:01:00]} 18. Rab1 {[%emt 0:14:31]} Rf5 {[%emt 0:00:24]} 19. h4 {[%emt 0:15:21]} Raf8 {[%emt 0:00:17]} 20. Nh3 {[%emt 0:00:38]} Bc4 {[%emt 0:03:14]} 21. a3 {[%emt 0:01:31]} h6 {[%emt 0:01:24]} 22. e6 {[%emt 0:10:05]} Bb5 {[%emt 0:02:40]} 23. Re5 {[%emt 0:02:32]} Qf6 {[%emt 0:02:48]} 24. Rxf5 {[%emt 0:06:43]} Qxf5 {[%emt 0:00:10]} 25. Re1 {[%emt 0:00:38]} Re8 {[%emt 0:01:43]} 26. Qd6 {[%emt 0:00:31]} Qf6 {[%emt 0:01:07]} 27. h5 {[%emt 0:01:05]} Rd8 {[%emt 0:03:14]} 28. Qc7 {[%emt 0:00:26]} Re8 {[%emt 0:01:53]} 29. e7 {[%emt 0:00:32]} Kg8 {[%emt 0:00:51]} 30. Re3 {[%emt 0:00:28]} d4 {[%emt 0:00:59]} 31. Qd7 {[%emt 0:00:27]} Qf7 {[%emt 0:02:02]} 32. Re5 {[%emt 0:00:26]} Bc4 {[%emt 0:03:31]} 33. Nf4 {[%emt 0:00:22]} Kh7 {[%emt 0:00:55]} 34. Ng6 {[%emt 0:00:44]} Rb8 {[%emt 0:01:45]} 35. e8=Q {[%emt 0:00:32]} Qf1+ {[%emt 0:00:32]} 36. Kh2 {[%emt 0:00:04]} Bd5 {[%emt 0:01:48]} 37. Rxd5 {[%emt 0:00:57]} 1-0

[Event "98th Caplin Hastings Masters 2024-25"]
[Site "Hastings"]
[Date "2024.12.28"]
[Round "1.53"]
[White "Kim, Nayoon B"]
[Black "Vaidyanathan, Adithya"]
[Result "1-0"]
[ECO "A37"]
[WhiteElo "1663"]
[BlackElo "1904"]
[Annotator "RC"]
[PlyCount "137"]
[EventDate "2024.12.23"]
[EventType "swiss"]
[EventCountry "ENG"]
[SourceTitle "playchess.com"]
[Source "ChessBase"]
[SourceQuality "1"]
[TimeControl "5400+30"]

1. c4 {[%emt 0:00:04]} c5 {[%emt 0:00:04]} 2. Nc3 {[%emt 0:00:05]} g6 {[%emt 0:00:04]} 3. g3 {[%emt 0:00:04]} Bg7 {[%emt 0:00:03]} 4. Bg2 {[%emt 0:00:04]} Nc6 {[%emt 0:00:03]} 5. Nf3 {[%emt 0:00:05]} e5 {[%emt 0:00:04]} 6. O-O {[%emt 0:00:15]} Nge7 {[%emt 0:00:05]} 7. d3 {[%emt 0:00:06]} O-O {[%emt 0:00:09]} 8. a3 {[%emt 0:01:04]} d6 {[%emt 0:00:23]} 9. Rb1 {[%emt 0:00:32]} f5 {[%emt 0:00:31]} 10. Qc2 {[%emt 0:05:25]} a5 {[%emt 0:00:30]} 11. Bg5 {[%emt 0:06:53]} Be6 {[%emt 0:01:17]} 12. Nd5 {[%emt 0:07:54]} Bxd5 {[%emt 0:12:07]} 13. cxd5 {[%emt 0:00:13]} Nb8 {[%emt 0:00:10]} 14. b4 {[%emt 0:03:21]} axb4 {[%emt 0:01:23]} 15. axb4 {[%emt 0:00:13]} Na6 {[%emt 0:00:07]} 16. bxc5 {[%emt 0:12:19]} Nxc5 {[%emt 0:00:07]} 17. e4 {[%emt 0:02:46]} Ra3 {[%emt 0:04:24]} 18. Ne1 {[%emt 0:05:32]} Qd7 {[%emt 0:05:36]} 19. Be3 {[%emt 0:04:18]} Rc8 {[%emt 0:02:13]} 20. Qd2 {[%emt 0:01:46]} Ra4 {[%emt 0:07:25]} 21. Bxc5 {[%emt 0:02:22]} Rxc5 {[%emt 0:00:21]} 22. Rb3 {[%emt 0:04:54]} Nc8 {[%emt 0:10:49]} 23. Qb2 {[%emt 0:02:16]} b6 {[%emt 0:00:19]} 24. Nc2 {[%emt 0:02:05]} fxe4 {[%emt 0:01:01]} 25. dxe4 {[%emt 0:00:35]} Bh6 {[%emt 0:00:40]} 26. Nb4 {[%emt 0:06:17]} Qc7 {[%emt 0:02:45]} 27. Nc6 {[%emt 0:01:57]} Rac4 {[%emt 0:05:29]} 28. Bh3 {[%emt 0:02:31]} Bf8 {[%emt 0:15:01]} 29. f4 {[%emt 0:12:30]} Rc2 {[%emt 0:07:11]} 30. Qa1 {[%emt 0:00:00]} Ne7 {[%emt 0:14:40]} 31. fxe5 {[%emt 0:00:00]} dxe5 {[%emt 0:00:11]} 32. Be6+ {[%emt 0:02:03]} Kg7 {[%emt 0:00:12]} 33. Qa8 {[%emt 0:01:41]} Nf5 {[%emt 0:04:47]} 34. exf5 {[%emt 0:01:25]} Bd6 {[%emt 0:02:50]} 35. f6+ {[%emt 0:02:45]} Kh6 {[%emt 0:00:05]} 36. f7 {[%emt 0:01:33]} Rc1 {[%emt 0:01:34]} 37. f8=Q+ {[%emt 0:00:36]} Bxf8 {[%emt 0:00:02]} 38. Qxf8+ {[%emt 0:00:08]} Qg7 {[%emt 0:00:50]} 39. Qxg7+ {[%emt 0:00:28]} Kxg7 {[%emt 0:00:03]} 40. Rxc1 {[%emt 0:00:22]} Rxc1+ {[%emt 0:00:02]} 41. Kg2 {[%emt 0:00:08]} Rc2+ {[%emt 0:00:07]} 42. Kh3 {[%emt 0:00:12]} Kf6 {[%emt 0:00:14]} 43. Rf3+ {[%emt 0:00:20]} Kg5 {[%emt 0:00:09]} 44. Nxe5 {[%emt 0:00:17]} Kh6 {[%emt 0:00:19]} 45. Ng4+ {[%emt 0:00:27]} Kg5 {[%emt 0:00:02]} 46. d6 {[%emt 0:01:30]} Rd2 {[%emt 0:00:07]} 47. Nf6 {[%emt 0:00:47]} Kh6 {[%emt 0:00:07]} 48. Ng8+ {[%emt 0:00:20]} Kg5 {[%emt 0:00:26]} 49. d7 {[%emt 0:01:31]} Rd6 {[%emt 0:00:14]} 50. Ne7 {[%emt 0:01:01]} b5 {[%emt 0:00:11]} 51. Nc6 {[%emt 0:00:12]} b4 {[%emt 0:00:06]} 52. d8=Q+ {[%emt 0:00:08]} Rxd8 {[%emt 0:00:04]} 53. Nxd8 {[%emt 0:00:04]} Kh6 {[%emt 0:00:06]} 54. Kh4 {[%emt 0:00:24]} b3 {[%emt 0:00:05]} 55. Rxb3 {[%emt 0:00:06]} g5+ {[%emt 0:00:07]} 56. Kg4 {[%emt 0:00:09]} Kg6 {[%emt 0:00:04]} 57. Bf5+ {[%emt 0:00:16]} Kf6 {[%emt 0:00:06]} 58. Rb6+ {[%emt 0:00:08]} Ke5 {[%emt 0:00:04]} 59. Re6+ {[%emt 0:00:12]} Kd5 {[%emt 0:00:05]} 60. Be4+ {[%emt 0:00:26]} Kc5 {[%emt 0:00:07]} 61. Kf5 {[%emt 0:00:12]} h5 {[%emt 0:00:07]} 62. Ke5 {[%emt 0:00:05]} h4 {[%emt 0:00:04]} 63. Rc6+ {[%emt 0:00:04]} Kb5 {[%emt 0:00:04]} 64. Bd3+ {[%emt 0:00:30]} Kb4 {[%emt 0:00:15]} 65. Kd4 {[%emt 0:00:05]} hxg3 {[%emt 0:00:05]} 66. Rb6+ {[%emt 0:00:11]} Ka5 {[%emt 0:00:05]} 67. Rb5+ {[%emt 0:00:22]} Ka6 {[%emt 0:00:09]} 68. Kc5 {[%emt 0:00:31]} g2 {[%emt 0:00:22]} 69. Rb1+ {[%emt 0:00:12]} 1-0

[Event "98th Caplin Hastings Masters 2024-25"]
[Site "Hastings"]
[Date "2024.12.29"]
[Round "2.1"]
[White "Vestby-Ellingsen, Mads"]
[Black "Zhang, Pengxiang"]
[Result "1-0"]
[ECO "B48"]
[WhiteElo "2383"]
[BlackElo "2567"]
[Annotator "TA"]
[PlyCount "127"]
[EventDate "2024.12.23"]
[EventType "swiss"]
[EventCountry "ENG"]
[SourceTitle "playchess.com"]
[Source "ChessBase"]
[SourceQuality "1"]
[TimeControl "5400+30"]

{[%evp 55,127,85,129,134,115,123,114,115,133,131,120,131,107,82,160,156,163,143,137,156,140,83,158,159,228,230,238,54,102,102,247,243,252,252,232,227,262,66,67,20,34,0,0,0,0,0,0,0,0,0,0,0,1189,0,0,0,1372,1338,29958,12837,29967,29967,29973,29970,29975,29970,29977,29978,29981,29982,29983,29983,29985,29985]} 1. e4 {[%emt 0:03:05]} c5 {[%emt 0:01:24]} 2. Nf3 {[%emt 0:00:19]} e6 {[%emt 0:00:03]} 3. d4 {[%emt 0:00:16]} cxd4 {[%emt 0:00:03]} 4. Nxd4 {[%emt 0:00:10]} Nc6 {[%emt 0:00:03]} 5. Nc3 {[%emt 0:00:16]} Qc7 {[%emt 0:00:04]} 6. Be3 {[%emt 0:00:57]} a6 {[%emt 0:00:12]} 7. Qf3 {[%emt 0:00:23]} b5 {[%emt 0:04:37]} 8. Qg3 {[%emt 0:00:48]} Qxg3 {[%emt 0:05:17]} 9. hxg3 {[%emt 0:00:09]} Bb7 {[%emt 0:00:06]} 10. Nb3 {[%emt 0:00:29]} Nf6 {[%emt 0:00:41]} 11. f3 {[%emt 0:00:16]} Be7 {[%emt 0:05:05]} 12. g4 {[%emt 0:03:34]} d6 {[%emt 0:03:32]} 13. Be2 {[%emt 0:05:48]} O-O {[%emt 0:01:21]} 14. O-O-O {[%emt 0:04:21]} Rac8 {[%emt 0:03:17]} 15. Rh3 {[%emt 0:08:46]} Rfd8 {[%emt 0:33:58]} 16. Rdh1 {[%emt 0:22:07]} h6 {[%emt 0:01:54]} 17. g5 {[%emt 0:00:46]} Nd7 {[%emt 0:01:11]} 18. gxh6 {[%emt 0:01:54]} g6 {[%emt 0:00:04]} 19. Rd1 {[%emt 0:04:07]} Nc5 {[%emt 0:02:09]} 20. Kb1 {[%emt 0:11:34]} b4 {[%emt 0:03:00]} 21. Nxc5 {[%emt 0:00:26]} dxc5 {[%emt 0:00:04]} 22. Rxd8+ {[%emt 0:04:58]} Rxd8 {[%emt 0:00:24]} 23. Na4 {[%emt 0:00:37]} Nd4 {[%emt 0:00:34]} 24. Bd3 {[%emt 0:01:17]} Kh7 {[%emt 0:19:23]} 25. Rh1 {[%emt 0:06:18]} Bc6 {[%emt 0:01:17]} 26. Nb6 {[%emt 0:02:52]} Bb5 {[%emt 0:00:14]} 27. Nc4 {[%emt 0:04:54]} f6 {[%emt 0:04:39]} 28. Na5 {[%emt 0:06:06]} e5 {[%emt 0:06:27]} 29. Bxb5 {[%emt 0:05:09]} axb5 {[%emt 0:00:01]} 30. c3 $1 {[%emt 0:00:13]} bxc3 {[%emt 0:01:01]} 31. bxc3 {[%emt 0:00:07]} Ne2 {[%emt 0:00:09]} 32. Nc6 $1 {[%emt 0:01:03]} Rd7 {[%emt 0:01:23]} (32... Nxc3+ $2 33. Kc2 Nxa2 34. Nxd8 (34. Nxe7 Nb4+ 35. Kb2 Rd7 $18) 34... Bxd8 35. Rd1 (35. Bxc5 Ba5 $18) 35... Nb4+ 36. Kb1 $18) 33. Nxe7 {[%emt 0:00:08]} Rxe7 {[%emt 0:00:06]} 34. Kc2 {[%emt 0:01:51]} (34. Bxc5 Nxc3+ (34... Rc7 35. Bf8 $16) 35. Kc2 Rc7 36. Kxc3 Rxc5+ 37. Kb3 g5 $14) 34... Rc7 {[%emt 0:01:30]} ({Black should try} 34... Ra7) 35. Rb1 $16 {[%emt 0:01:09]} b4 {[%emt 0:01:26]} 36. cxb4 {[%emt 0:00:06]} cxb4+ {[%emt 0:00:04]} 37. Kd2 $1 {[%emt 0:00:28]} Nf4 {[%emt 0:01:24]} 38. Rxb4 {[%emt 0:01:06]} (38. Bxf4 $1 exf4 39. Rxb4) 38... Nxg2 {[%emt 0:00:20]} (38... Rd7+ $142 39. Kc2 Nxg2) 39. Bb6 $1 $16 {[%emt 0:00:13]} Rd7+ {[%emt 0:00:02]} (39... Rc6 $16) 40. Kc3 $18 {[%emt 0:00:46]} Ne1 {[%emt 0:00:07]} 41. Rb1 $2 {[%emt 0:00:35]} (41. a4 $18) 41... Nxf3 {[%emt 0:00:25]} (41... Rd6 $1 $14 {should be considered.}) 42. a4 $1 $16 {[%emt 0:00:14]} Nd4 {[%emt 0:01:22]} (42... Nd2 $16 {keeps fighting.} 43. Re1 Nf3) 43. a5 $18 {[%emt 0:00:22]} Rb7 {[%emt 0:01:00]} 44. a6 {[%emt 0:00:30]} Rb8 {[%emt 0:00:01]} 45. Kc4 {[%emt 0:00:30]} Ra8 {[%emt 0:00:59]} 46. Ra1 $2 {[%emt 0:00:29]} ({Better is} 46. Bxd4 $18 exd4 47. Rb6) 46... Kxh6 $14 {[%emt 0:00:31]} 47. Kd5 {[%emt 0:00:19]} (47. Bxd4 $14 exd4 48. a7 (48. Kxd4 f5 $16)) 47... Kg5 {[%emt 0:00:35]} 48. Kd6 {[%emt 0:00:53]} Kf4 {[%emt 0:00:08]} 49. Kc7 {[%emt 0:00:21]} Kxe4 {[%emt 0:00:18]} 50. Kb7 {[%emt 0:00:32]} Rg8 {[%emt 0:00:24]} 51. a7 {[%emt 0:00:29]} g5 {[%emt 0:00:12]} 52. Re1+ {[%emt 0:00:51]} (52. a8=B Kf4 53. Ra6 g4 (53... f5 54. Bc7 $17)) 52... Kd5 {[%emt 0:00:52]} 53. Rc1 {[%emt 0:00:13]} (53. a8=B g4 54. Ra1 Rg7+ 55. Ka6+ Ke6 $17) (53. a8=Q Rxa8 54. Kxa8 f5) 53... Nf5 $2 {[%emt 0:01:00][%mdl 8192]} (53... Ne6 $11) 54. Rd1+ $2 {[%emt 0:00:22]} (54. a8=B $2 Nd6+ 55. Ka7+ Ke6 $19) (54. Bc7 $1 $18 {[%cal Rc7b8] Bb8 would now be deadly.} Nd6+ 55. Ka6 (55. Bxd6 Kxd6 56. Rc6+ Kd5 $11)) 54... Nd4 $11 {[%emt 0:00:34]} 55. Rc1 $2 {[%emt 0:00:08][%mdl 8192]} (55. a8=Q Rxa8 56. Kxa8 f5) (55. Rg1 $11) 55... Nf5 $18 {[%emt 0:00:03] [#]} 56. Bc7 $1 {[%emt 0:01:15]} (56. a8=B $2 Nd6+ 57. Ka7+ Ke6 $17) 56... Nd6+ {[%emt 0:00:09] [#]} 57. Ka6 $1 {[%emt 0:00:31]} (57. Bxd6 Kxd6 58. Rc8 (58. a8=B $2 {is the wrong capture.} e4 $19) (58. a8=Q Rxa8 59. Rd1+ Ke6 $17) 58... Rg7+ (58... Rxc8 $2 59. Kxc8 f5 60. a8=Q $18) 59. Kb8 (59. Kb6 Rxa7 60. Kxa7 e4 $17) 59... Rxa7 60. Kxa7 Kd5 $11) 57... Ra8 {[%emt 0:01:06]} 58. Rd1+ {[%emt 0:00:14]} Ke4 {[%emt 0:00:24]} 59. Bxd6 {[%emt 0:00:11]} g4 {[%emt 0:00:04]} 60. Rf1 {[%emt 0:00:52]} f5 {[%emt 0:01:09]} 61. Re1+ {[%emt 0:00:16]} Kf3 {[%emt 0:00:04]} 62. Rxe5 {[%emt 0:00:17]} g3 {[%emt 0:01:03]} 63. Rxf5+ {[%emt 0:00:09]} Kg4 {[%emt 0:00:03]} 64. Rf4+ {[%emt 0:00:22]} 1-0